bitfinex/quotes_ETHUSD_20230117
["timestamp","ask_amount","ask_price","bid_price","bid_amount"]
[1673968073640,18.56470244,1585.3,1585.1,0.06405359]
[1673968074794,18.09140244,1585.3,1585.1,0.06405359]
[1673968075218,1.0,1585.2,1585.1,0.06405359]
[1673968075428,7.30835,1585.2,1585.1,0.06405359]
[1673968075682,1.66347884,1585.2,1585.1,0.06405359]
[1673968075880,6.30835,1585.2,1585.1,0.06405359]
[1673968076111,9.49097407,1585.2,1585.1,0.06405359]
[1673968076323,18.79932407,1585.2,1585.1,0.06405359]
[1673968076499,9.37435,1585.2,1585.1,0.06405359]
[1673968076850,10.64635,1585.2,1585.1,0.06405359]
[1673968077003,11.5762599,1585.2,1585.1,0.06405359]
[1673968077212,9.5762599,1585.2,1585.1,0.06405359]
[1673968077475,0.066,1585.2,1585.1,0.06405359]
[1673968077686,4.623,1585.3,1585.1,0.72105359]
[1673968077902,4.557,1585.3,1585.1,0.06405359]
[1673968078489,7.67362407,1585.3,1585.1,0.06405359]
[1673968078753,20.35564407,1585.3,1585.1,0.06405359]
[1673968078899,3.03556441,1585.2,1585.1,0.06405359]
[1673968079101,18.76888848,1585.2,1585.1,0.06405359]
[1673968079311,18.83488848,1585.2,1585.1,0.06405359]
[1673968080085,21.83488848,1585.2,1585.1,0.06405359]
[1673968080633,22.30818848,1585.2,1585.1,0.06405359]
[1673968080970,21.30818848,1585.2,1585.1,0.06405359]
[1673968081310,23.84218848,1585.2,1585.1,0.06405359]
[1673968081733,14.99983848,1585.2,1585.1,0.06405359]
[1673968081944,9.49097407,1585.2,1585.1,0.06405359]
[1673968082362,0.066,1585.2,1585.1,0.06405359]
[1673968082588,17.39032407,1585.2,1585.1,0.06405359]
[1673968082796,17.45632407,1585.2,1585.1,5.359e-05]
[1673968082993,17.72732407,1585.2,1585.1,5.359e-05]
[1673968083230,0.066,1585.2,1585.1,5.359e-05]
[1673968083462,10.96577896,1585.3,1585.1,5.359e-05]
[1673968083682,20.39073303,1585.3,1585.1,5.359e-05]
[1673968083839,14.08240303,1585.3,1585.1,5.359e-05]
[1673968084203,4.623,1585.3,1585.1,5.359e-05]
[1673968084423,4.557,1585.3,1585.1,5.359e-05]
[1673968086845,10.86507,1585.3,1585.1,5.359e-05]
[1673968086988,3.11662407,1585.2,1585.1,5.359e-05]
[1673968087202,9.42497407,1585.2,1585.1,5.359e-05]
[1673968087453,15.79932407,1585.2,1585.1,5.359e-05]
[1673968088506,18.79932407,1585.2,1585.1,5.359e-05]
[1673968088826,19.27262407,1585.2,1585.1,5.359e-05]
[1673968089013,24.46979647,1585.2,1585.1,5.359e-05]
[1673968089467,23.99649647,1585.2,1585.1,5.359e-05]
[1673968090451,27.01179647,1585.2,1585.1,5.359e-05]
[1673968090661,25.74079647,1585.2,1585.1,5.359e-05]
[1673968090916,25.46979647,1585.2,1585.1,5.359e-05]
[1673968091097,26.1065382,1585.2,1585.1,5.359e-05]
[1673968091328,25.1065382,1585.2,1585.1,5.359e-05]
[1673968091504,16.27262407,1585.2,1585.1,5.359e-05]
[1673968091719,15.79932407,1585.2,1585.1,5.359e-05]
[1673968092088,0.066,1585.2,1585.1,0.65705359]
[1673968092409,23.48165,1585.3,1585.1,0.65705359]
[1673968092410,17.23936,1585.3,1585.1,0.65705359]
[1673968092712,4.623,1585.3,1585.1,0.65705359]
[1673968093028,4.557,1585.3,1585.1,0.65705359]
[1673968094231,4.557,1585.3,1585.1,5.359e-05]
[1673968094443,12.588987,1585.3,1585.1,5.359e-05]
[1673968094690,12.654987,1585.3,1585.1,5.359e-05]
[1673968094969,17.23924,1585.3,1585.1,5.359e-05]
[1673968095179,10.93112,1585.3,1585.1,5.359e-05]
[1673968095994,3.11662407,1585.2,1585.1,5.359e-05]
[1673968096283,15.73332407,1585.2,1585.1,5.359e-05]
[1673968096496,6.37435,1585.2,1585.1,5.359e-05]
[1673968097127,13.6827,1585.2,1585.1,5.359e-05]
[1673968097353,16.137482,1585.2,1585.1,5.359e-05]
[1673968097522,19.25410607,1585.2,1585.1,5.359e-05]
[1673968097737,19.72740607,1585.2,1585.1,5.359e-05]
[1673968097946,20.3641478,1585.2,1585.1,5.359e-05]
[1673968099024,21.29090207,1585.2,1585.1,5.359e-05]
[1673968099212,20.3641478,1585.2,1585.1,5.359e-05]
[1673968099769,26.6724978,1585.2,1585.1,5.359e-05]
[1673968099925,30.59925207,1585.2,1585.1,5.359e-05]
[1673968100136,31.99185229,1585.2,1585.1,5.359e-05]
[1673968100695,30.60172088,1585.2,1585.1,5.359e-05]
[1673968101155,29.96497915,1585.2,1585.1,5.359e-05]
[1673968101682,28.96497915,1585.2,1585.1,5.359e-05]
[1673968102059,28.49167915,1585.2,1585.1,5.359e-05]
[1673968103316,29.88181056,1585.2,1585.1,5.359e-05]
[1673968103530,32.71236172,1585.2,1585.1,5.359e-05]
[1673968103739,29.42958183,1585.2,1585.1,5.359e-05]
[1673968104568,28.96511666,1585.2,1585.1,5.359e-05]
[1673968104834,30.35894242,1585.2,1585.1,5.359e-05]
[1673968105032,13.156,1585.2,1585.1,0.65705359]
[1673968105362,6.37435,1585.2,1585.1,0.65705359]
[1673968105668,13.61206059,1585.2,1585.1,5.359e-05]
[1673968105834,13.33919306,1585.2,1585.1,5.359e-05]
[1673968106986,6.10148247,1585.2,1585.1,0.65705359]
[1673968107198,0.066,1585.2,1585.1,0.72275895]
[1673968107406,4.623,1585.3,1585.1,0.72275895]
[1673968107743,1.3,1585.2,1585.1,0.72275895]
[1673968108297,4.623,1585.3,1585.1,1.98275895]
[1673968108450,4.557,1585.3,1585.2,1.268]
[1673968108664,4.557,1585.3,1585.2,1.4670759]
[1673968109536,4.557,1585.3,1585.2,15.3507759]
[1673968109745,4.557,1585.3,1585.2,22.00669997]
[1673968111847,2.88741043,1585.3,1585.2,23.00669997]
[1673968112054,2.88741043,1585.3,1585.2,22.00669997]
[1673968112271,2.88741043,1585.3,1585.2,23.00669997]
[1673968112681,0.066,1585.5,1585.2,23.00669997]
[1673968112894,0.92936059,1585.7,1585.4,20.19065]
[1673968113086,0.92936059,1585.7,1585.5,7.57807]
[1673968113295,0.92936059,1585.7,1585.5,0.723]
[1673968113296,0.92936059,1585.6,1585.5,0.723]
[1673968113493,0.92936059,1585.6,1585.4,1.268]
[1673968114376,8.69569635,1585.7,1585.4,1.268]
[1673968114704,0.92936059,1585.6,1585.4,1.268]
[1673968116462,0.92936059,1585.5,1585.3,0.066]
[1673968116649,13.54401059,1585.5,1585.1,8.88775359]
[1673968117018,13.61001059,1585.5,1585.1,8.88775359]
[1673968117172,13.61001059,1585.5,1585.1,0.06605359]
[1673968117391,12.68065,1585.5,1585.1,6.30872359]
[1673968117756,12.68065,1585.5,1585.1,7.64572359]
[1673968117911,13.61001059,1585.5,1585.1,9.2527815]
[1673968118120,23.03409466,1585.5,1585.1,0.06605359]
[1673968118389,23.03409466,1585.5,1585.1,5.359e-05]
[1673968118542,19.91747059,1585.5,1585.1,5.359e-05]
[1673968118864,7.30252059,1585.5,1585.1,10.57976359]
[1673968119074,7.30252059,1585.5,1585.1,10.64576359]
[1673968119647,19.91684059,1585.5,1585.1,4.33705359]
[1673968119808,19.91684059,1585.5,1585.1,4.27105359]
[1673968120013,23.03346466,1585.5,1585.1,4.27105359]
[1673968120260,23.03346466,1585.5,1585.1,5.359e-05]
[1673968120261,12.6159,1585.3,1585.1,5.359e-05]
[1673968120481,6.35995,1585.3,1585.1,0.13375895]
[1673968120692,6.35995,1585.3,1585.2,1.271]
[1673968120693,0.066,1585.3,1585.2,1.271]
[1673968120908,8.69611635,1585.6,1585.2,1.271]
[1673968121248,0.99536059,1585.6,1585.2,7.57913]
[1673968121436,7.23661059,1585.5,1585.2,1.337]
[1673968121591,7.25061059,1585.5,1585.2,1.323]
[1673968121799,7.30261059,1585.5,1585.2,1.271]
[1673968122254,23.03353466,1585.5,1585.1,0.06605359]
[1673968122470,13.60966059,1585.5,1585.1,3.00005359]
[1673968122660,7.30251059,1585.5,1585.1,15.61749359]
[1673968122866,7.30251059,1585.5,1585.1,15.68349359]
[1673968123384,0.99536059,1585.5,1585.2,13.87819]
[1673968123590,0.92936059,1585.5,1585.2,13.94419]
[1673968124218,0.92936059,1585.4,1585.2,1.328]
[1673968124535,7.23714059,1585.4,1585.2,1.262]
[1673968124763,7.23714059,1585.4,1585.1,3.06605359]
[1673968124764,7.30314059,1585.4,1585.1,3.06605359]
[1673968125072,7.30314059,1585.4,1585.1,3.00005359]
[1673968126158,23.03532466,1585.4,1585.1,3.00005359]
[1673968126374,19.91870059,1585.4,1585.1,5.359e-05]
[1673968126735,0.92936059,1585.3,1585.1,5.359e-05]
[1673968127065,24.39836938,1585.3,1585.1,5.359e-05]
[1673968127279,22.29424753,1585.2,1585.1,5.359e-05]
[1673968127491,23.75407329,1585.2,1585.1,5.359e-05]
[1673968127907,0.99536059,1585.2,1585.1,5.359e-05]
[1673968128117,7.30331059,1585.3,1585.1,5.359e-05]
[1673968128847,0.99536059,1585.3,1585.1,5.359e-05]
[1673968129055,0.92936059,1585.3,1585.1,5.359e-05]
[1673968129304,0.4733,1585.2,1585.1,5.359e-05]
[1673968129494,0.92936059,1585.3,1585.1,5.359e-05]
[1673968130123,5.78018255,1585.3,1585.1,5.359e-05]
[1673968130350,0.92936059,1585.2,1585.1,5.359e-05]
[1673968130562,13.54606059,1585.2,1585.1,5.359e-05]
[1673968130791,13.61206059,1585.2,1585.1,5.359e-05]
[1673968130944,17.72868466,1585.2,1585.1,5.359e-05]
[1673968131160,27.09491962,1585.2,1585.1,5.359e-05]
[1673968131385,26.09491962,1585.2,1585.1,5.359e-05]
[1673968133097,27.95895213,1585.2,1585.1,5.359e-05]
[1673968133391,0.00194641,1585.0,1584.6,0.066]
[1673968133607,1.93067226,1585.0,1584.5,22.218]
[1673968133833,6.3097,1584.9,1584.5,1.337]
[1673968134003,6.3757,1584.9,1584.5,1.271]
[1673968134218,12.6854,1584.9,1584.5,1.271]
[1673968134904,15.80202407,1584.9,1584.5,1.271]
[1673968135062,0.4734,1584.8,1584.3,6.44540557]
[1673968135271,1.4734,1584.8,1584.4,15.73955407]
[1673968135536,0.06794641,1585.0,1584.5,3.11662407]
[1673968135726,0.06794641,1585.0,1584.6,15.73784407]
[1673968135900,0.00194641,1585.0,1584.6,15.80390407]
[1673968136115,0.00194641,1585.0,1584.6,7.64754]
[1673968136442,6.3096,1584.9,1584.6,0.066]
[1673968136668,6.3756,1584.9,1584.5,4.268]
[1673968137508,0.066,1584.9,1584.5,4.268]
[1673968137739,6.37709641,1585.0,1584.5,16.89014]
[1673968137896,12.72090537,1585.0,1584.5,13.95614]
[1673968138102,0.4734,1584.9,1584.5,13.95614]
[1673968138317,0.4734,1584.9,1584.5,7.64501]
[1673968138527,6.30956,1584.9,1584.5,7.64501]
[1673968138773,12.68512,1584.9,1584.5,1.334]
[1673968138985,12.68512,1584.9,1584.5,2.032531]
[1673968139204,6.37556,1584.9,1584.5,2.032531]
[1673968139422,6.37556,1584.9,1584.5,8.343591]
[1673968139578,6.37556,1584.9,1584.5,8.409591]
[1673968140473,6.37556,1584.9,1584.5,2.098531]
[1673968140691,6.37556,1584.9,1584.5,2.044531]
[1673968140844,0.066,1584.9,1584.6,3.32107717]
[1673968141048,0.47534641,1585.0,1584.7,12.85068]
[1673968141049,0.00194641,1585.0,1584.7,12.85068]
[1673968141340,0.00194641,1585.0,1584.8,3.0]
[1673968141628,0.00194641,1585.0,1584.9,19.22862]
[1673968141846,0.00194641,1585.0,1584.9,20.78462]
[1673968142208,0.00194641,1585.0,1584.9,28.16924407]
[1673968142688,0.00194641,1585.0,1584.9,25.05262]
[1673968143276,0.00194641,1585.0,1584.9,28.16924407]
[1673968144546,0.00194641,1585.0,1584.9,12.20354]
[1673968144997,0.00194641,1585.0,1584.9,18.51308]
[1673968145587,0.00194641,1585.0,1584.9,21.62970407]
[1673968145801,0.00194641,1585.0,1584.9,28.16924407]
[1673968146283,0.92872585,1585.6,1584.9,29.73469259]
[1673968146450,0.99472585,1585.7,1585.0,8.91188316]
[1673968146661,0.92872585,1585.7,1585.2,18.92493]
[1673968146850,0.92872585,1585.7,1585.4,1.267]
[1673968147065,0.92872585,1585.7,1585.4,7.5745]
[1673968147322,0.92872585,1585.7,1585.4,7.6405]
[1673968147711,0.92872585,1585.7,1585.5,0.76405]
[1673968148279,2.38781463,1585.9,1585.6,1.271]
[1673968148589,0.92872585,1585.9,1585.6,6.30657]
[1673968148814,0.92872585,1585.8,1585.7,0.630657]
[1673968148961,1.39308878,1585.9,1585.7,0.630657]
[1673968148962,2.32181463,1585.9,1585.7,0.630657]
[1673968149495,0.92872585,1585.9,1585.7,0.630657]
[1673968149706,2.32181463,1585.9,1585.7,0.630657]
[1673968149918,0.92872585,1585.9,1585.7,0.630657]
[1673968150679,3.4699489,1586.0,1585.7,6.936987]
[1673968150680,1.14155346,1586.0,1585.7,6.936987]
[1673968150848,1.07555346,1586.0,1585.8,0.6936987]
[1673968151584,0.14682761,1586.0,1585.8,13.3055287]
[1673968151793,0.14682761,1586.0,1585.8,13.3695287]
[1673968152069,0.14682761,1586.0,1585.9,1.26]
[1673968152373,0.14682761,1586.0,1585.9,7.56556]
[1673968152527,0.14682761,1586.0,1585.9,18.08047921]
[1673968153580,0.14682761,1586.0,1585.9,21.19710328]
[1673968154501,0.14682761,1586.0,1585.9,18.08047921]
[1673968155025,0.14682761,1586.0,1585.9,21.19710328]
[1673968155469,0.14682761,1586.0,1585.9,23.46810328]
[1673968156163,0.14682761,1586.0,1585.9,18.09147921]
[1673968156498,0.14682761,1586.0,1585.9,16.59147921]
[1673968157336,0.14682761,1586.0,1585.9,19.70810328]
[1673968157507,0.14682761,1586.0,1585.9,20.97610328]
[1673968158230,0.14682761,1586.0,1585.9,11.32391921]
[1673968158601,0.14382761,1586.0,1585.9,13.52718407]
[1673968158750,0.14382761,1586.0,1585.9,19.83274407]
[1673968159699,0.14382761,1586.0,1585.9,21.06274407]
[1673968159932,0.14382761,1586.0,1585.9,20.06274407]
[1673968161196,0.14382761,1586.0,1585.9,26.36830407]
[1673968163073,0.14382761,1586.0,1585.9,20.06274407]
[1673968163321,0.14382761,1586.0,1585.9,15.44512]
[1673968164071,0.77782761,1586.0,1585.9,15.44512]
[1673968164238,0.77782761,1586.0,1585.9,3.066]
[1673968164449,0.77782761,1586.0,1585.8,4.328]
[1673968164659,0.87427303,1586.0,1585.7,0.066]
[1673968164995,6.81327896,1585.9,1585.6,0.066]
[1673968165227,6.87927896,1585.9,1585.4,6.37321]
[1673968165753,13.18500896,1585.9,1585.4,0.066]
[1673968165905,16.30163303,1585.9,1585.3,0.066]
[1673968166116,1.6301633,1585.8,1585.2,0.066]
[1673968166511,0.50764896,1585.7,1585.2,6.30828]
[1673968166810,0.50764896,1585.7,1585.3,3.0]
[1673968167329,0.50764896,1585.7,1585.3,9.30783]
[1673968167641,0.50764896,1585.7,1585.3,9.37383]
[1673968167959,1.35202719,1585.7,1585.3,3.066]
[1673968168171,13.96479719,1585.7,1585.2,1.337]
[1673968168319,1.41802719,1585.7,1585.2,7.57928]
[1673968168694,1.35202719,1585.7,1585.2,7.64528]
[1673968169270,0.4732,1585.7,1585.4,1.271]
[1673968169478,0.4731,1585.9,1585.5,1.501]
[1673968169712,0.4731,1585.9,1585.5,1.271]
[1673968169942,3.7254303,1585.9,1585.5,1.271]
[1673968170464,16.3366103,1585.9,1585.4,4.337]
[1673968170635,19.51923437,1585.9,1585.4,3.0]
[1673968170841,19.51923437,1585.9,1585.3,7.6447]
[1673968171299,0.03444896,1585.8,1585.3,7.6447]
[1673968171520,0.4732,1585.7,1585.3,7.6447]
[1673968172210,3.15107303,1585.6,1585.3,0.066]
[1673968172422,6.30715,1585.5,1585.2,1.271]
[1673968172668,0.066,1585.5,1585.2,1.271]
[1673968172938,0.03444896,1585.6,1585.2,13.88765]
[1673968173207,0.03444896,1585.6,1585.3,3.0]
[1673968173738,9.45789303,1585.6,1585.2,1.337]
[1673968173951,3.58982407,1585.5,1585.1,0.13159247]
[1673968174137,12.61523,1585.4,1585.1,0.11759247]
[1673968174476,13.04021241,1585.4,1585.1,0.06559247]
[1673968175155,6.3736,1585.4,1585.1,3.18221654]
[1673968175405,0.066,1585.4,1585.2,1.267]
[1673968175628,6.30722,1585.5,1585.1,1.40259247]
[1673968175837,0.4733,1585.4,1585.1,1.33659247]
[1673968175995,13.15388,1585.5,1585.1,1.33659247]
[1673968176199,15.099959,1585.5,1585.1,1.33659247]
[1673968176831,21.407419,1585.5,1585.1,1.33659247]
[1673968177188,8.319299,1585.5,1585.1,1.33659247]
[1673968177358,8.319299,1585.5,1585.1,7.64533247]
[1673968177359,0.066,1585.5,1585.1,7.64533247]
[1673968177568,6.84609,1585.6,1585.1,14.02008247]
[1673968177991,22.57643407,1585.6,1585.1,1.40259247]
[1673968178197,0.5392,1585.6,1585.2,0.23]
[1673968178464,13.08691,1585.6,1585.2,0.23]
[1673968178784,1.308691,1585.5,1585.1,1.40259247]
[1673968178951,6.78092,1585.4,1585.1,1.33659247]
[1673968179151,6.37362,1585.4,1585.1,1.33659247]
[1673968180143,0.03444896,1585.3,1585.1,0.06559247]
[1673968180378,6.30835,1585.2,1585.1,0.06559247]
[1673968180508,6.37435,1585.2,1585.1,0.06559247]
[1673968180722,7.6933749,1585.2,1585.1,0.06559247]
[1673968180983,0.066,1585.2,1585.1,0.06559247]
[1673968181362,0.03444896,1585.3,1585.1,0.06559247]
[1673968182986,0.03444896,1585.3,1585.1,0.06265358]
[1673968183507,0.066,1585.4,1585.1,18.98886358]
[1673968183827,6.84612,1585.6,1585.1,19.05486358]
[1673968184399,6.84612,1585.6,1585.1,19.05286358]
[1673968184607,6.84612,1585.6,1585.1,19.05486358]
[1673968184930,13.15304,1585.6,1585.1,19.05486358]
[1673968185132,15.098984,1585.6,1585.1,19.05486358]
[1673968186236,24.52252807,1585.6,1585.1,6.43736358]
[1673968186554,6.84612,1585.6,1585.1,19.05486358]
[1673968186721,6.37292,1585.6,1585.1,19.05486358]
[1673968187168,12.67968,1585.6,1585.1,19.05486358]
[1673968187765,12.67968,1585.6,1585.1,0.12865358]
[1673968187979,0.50764896,1585.5,1585.1,6.37133358]
[1673968188321,13.91694696,1585.5,1585.1,0.12865358]
[1673968188529,13.98094696,1585.5,1585.1,0.06265358]
[1673968188749,13.98294696,1585.5,1585.1,6.37131358]
[1673968189076,13.98294696,1585.5,1585.1,0.12865358]
[1673968189234,1.3982947,1585.4,1585.1,0.06265358]
[1673968189446,12.6159,1585.3,1585.1,0.06265358]
[1673968189690,18.98985,1585.3,1585.1,0.06265358]
[1673968189905,19.02429896,1585.3,1585.1,0.06265358]
[1673968190126,12.71634896,1585.3,1585.1,0.06265358]
[1673968190317,1.2716349,1585.2,1585.1,0.06265358]
[1673968190910,0.10044896,1585.3,1585.1,0.06265358]
[1673968191127,0.03444896,1585.3,1585.1,0.06265358]
[1673968192062,6.34242896,1585.3,1585.1,0.06265358]
[1673968192278,12.71637896,1585.3,1585.1,0.06265358]
[1673968193010,0.066,1585.3,1585.1,6.37139358]
[1673968193221,0.4733,1585.4,1585.1,6.43739358]
[1673968193489,13.15395,1585.5,1585.1,6.43739358]
[1673968193808,1.315395,1585.4,1585.1,6.43739358]
[1673968194181,1.315395,1585.4,1585.1,0.12865358]
[1673968194390,0.066,1585.5,1585.1,3.17927765]
[1673968194616,65.01564463,1585.8,1585.3,6.30795]
[1673968194617,13.08633,1585.7,1585.3,6.30795]
[1673968194829,6.37253,1585.7,1585.3,6.37395]
[1673968195253,6.37253,1585.7,1585.3,12.6819]
[1673968196897,0.066,1585.7,1585.3,18.98985]
[1673968197139,19.49223896,1585.8,1585.3,18.98985]
[1673968197763,19.01913896,1585.8,1585.3,18.98985]
[1673968198208,1.0,1585.7,1585.3,18.98985]
[1673968198419,3.0019139,1585.7,1585.3,18.98985]
[1673968198579,2.0019139,1585.7,1585.3,18.98985]
[1673968198788,8.3082739,1585.7,1585.3,18.98985]
[1673968199055,8.3742739,1585.7,1585.3,18.98985]
[1673968199840,8.3742739,1585.7,1585.3,12.6819]
[1673968200163,0.83742739,1585.6,1585.3,12.6819]
[1673968200594,8.3742739,1585.7,1585.3,12.6819]
[1673968201631,0.066,1585.7,1585.3,12.6819]
[1673968201842,19.94782481,1585.8,1585.3,12.6819]
[1673968202100,13.64159481,1585.8,1585.3,12.6819]
[1673968202263,13.64159481,1585.8,1585.3,18.98985]
[1673968202678,13.64159481,1585.8,1585.3,12.6819]
[1673968202953,1.36415948,1585.7,1585.3,12.6819]
[1673968203411,2.29288533,1585.7,1585.3,12.6819]
[1673968203903,8.59927533,1585.7,1585.3,12.6819]
[1673968204057,0.92872585,1585.6,1585.3,12.6819]
[1673968204268,8.66527533,1585.7,1585.3,12.6819]
[1673968205653,10.05836411,1585.7,1585.3,12.67864366]
[1673968206095,5.05118633,1585.6,1585.3,0.066]
[1673968206259,5.05318633,1585.6,1585.3,0.054]
[1673968206477,6.30715,1585.5,1585.1,25.15253358]
[1673968206685,6.30715,1585.5,1585.2,3.0]
[1673968206686,6.37315,1585.5,1585.2,3.0]
[1673968206893,16.01283548,1585.5,1585.1,6.43722358]
[1673968207108,22.79318548,1585.5,1585.1,0.12865358]
[1673968207360,22.31998548,1585.5,1585.1,0.06265358]
[1673968208514,22.31998548,1585.5,1585.1,6.37137358]
[1673968208662,0.99472585,1585.5,1585.1,6.43737358]
[1673968208875,1.46792585,1585.6,1585.2,0.23]
[1673968209089,0.92872585,1585.6,1585.3,6.30787]
[1673968209350,0.92872585,1585.6,1585.3,6.37387]
[1673968209351,1.50010046,1585.6,1585.3,6.37387]
[1673968209522,24.46584038,1585.6,1585.3,0.066]
[1673968209864,0.03230417,1585.5,1585.2,3.0]
[1673968210191,0.03230417,1585.5,1585.1,12.74570358]
[1673968210192,12.64692417,1585.5,1585.1,12.74570358]
[1673968210408,23.06571409,1585.5,1585.1,0.12865358]
[1673968210643,14.92207141,1585.4,1585.1,3.06265358]
[1673968210773,0.066,1585.4,1585.1,15.68011358]
[1673968211102,13.57576002,1585.5,1585.1,3.12865358]
[1673968211316,19.94926002,1585.5,1585.1,9.37139358]
[1673968211527,19.94926002,1585.5,1585.1,3.12865358]
[1673968211735,3.11662407,1585.4,1585.1,0.06265358]
[1673968211946,18.92385,1585.3,1585.1,0.06265358]
[1673968212157,12.6819,1585.3,1585.1,0.06265358]
[1673968212718,0.066,1585.3,1585.1,0.06265358]
[1673968212962,7.30195585,1585.5,1585.1,6.37138358]
[1673968213241,3.11662407,1585.4,1585.1,0.12865358]
[1673968213454,3.11662407,1585.4,1585.1,0.06265358]
[1673968213455,15.73252407,1585.3,1585.1,0.06265358]
[1673968213640,1.57325241,1585.2,1585.1,0.06265358]
[1673968213855,18.33888066,1585.2,1585.1,0.06265358]
[1673968214030,17.40488066,1585.2,1585.1,0.06265358]
[1673968214240,18.67488066,1585.2,1585.1,0.06265358]
[1673968214513,18.67488066,1585.2,1584.7,0.94172749]
[1673968214514,19.60360651,1585.2,1584.7,0.94172749]
[1673968214826,6.30922,1585.0,1584.6,2.4199112]
[1673968214970,6.30922,1585.0,1584.7,2.50737909]
[1673968214971,9.49184407,1585.0,1584.7,2.50737909]
[1673968215180,9.49184407,1585.0,1584.7,8.81758909]
[1673968215181,0.066,1585.0,1584.7,8.81758909]
[1673968215399,27.90040659,1585.2,1584.8,1.5656516]
[1673968215728,11.56983066,1585.2,1584.8,1.5656516]
[1673968216079,18.80712651,1585.2,1584.7,6.37621]
[1673968216248,3.11662407,1585.1,1584.7,0.066]
[1673968216446,9.42560407,1585.1,1584.7,1.5656336]
[1673968216656,15.80058407,1585.1,1584.7,4.5656336]
[1673968216935,15.80058407,1585.1,1584.7,3.0]
[1673968217242,17.31542248,1585.0,1584.7,3.0]
[1673968217404,17.38142248,1585.0,1584.6,4.07331996]
[1673968217613,17.38142248,1585.0,1584.7,1.56566166]
[1673968217825,1.64605841,1585.0,1584.7,4.56566166]
[1673968218032,0.066,1585.1,1584.8,6.3097]
[1673968218409,7.32513248,1585.8,1584.8,6.3097]
[1673968218410,3.23926745,1586.0,1585.8,6.30595]
[1673968218589,2.46594012,1586.1,1585.8,8.19389484]
[1673968218590,0.00217766,1586.1,1585.8,8.19389484]
[1673968218805,0.14946546,1586.3,1586.0,9.91990347]
[1673968218977,0.14946546,1586.3,1586.2,12.45694397]
[1673968219177,0.14543244,1586.7,1586.2,12.45694397]
[1673968219178,0.14543244,1586.7,1586.2,29.68431255]
[1673968219389,0.14543244,1586.7,1586.5,0.94338822]
[1673968219760,0.14543244,1586.7,1586.6,20.99139822]
[1673968219915,0.14543244,1586.7,1586.6,21.68213995]
[1673968220120,0.14543244,1586.7,1586.6,20.22164535]
[1673968220332,0.14543244,1586.7,1586.6,19.58290362]
[1673968220661,0.14543244,1586.7,1586.6,22.72164535]
[1673968221444,0.15217766,1586.8,1586.6,29.36813535]
[1673968221758,0.15217766,1586.8,1586.7,28.19382613]
[1673968222011,0.1748699,1587.5,1586.8,1.0]
[1673968222176,0.1748699,1587.5,1587.1,1.27]
[1673968222368,0.1748699,1587.5,1587.2,6.53032]
[1673968222587,0.20717408,1587.5,1587.2,0.066]
[1673968222752,0.20717408,1587.5,1587.1,3.0]
[1673968222966,0.20717408,1587.5,1587.1,9.30063]
[1673968223215,0.20717408,1587.5,1587.2,1.5]
[1673968223421,0.20717408,1587.5,1587.2,13.20074597]
[1673968223635,0.20717408,1587.5,1587.3,0.23]
[1673968223855,0.20717408,1587.5,1587.2,4.336]
[1673968224081,0.1748699,1587.5,1587.3,0.23]
[1673968224250,0.1748699,1587.5,1587.3,1.492]
[1673968224595,0.1748699,1587.5,1587.3,10.79181]
[1673968224810,0.1748699,1587.5,1587.3,10.85781]
[1673968224976,0.1748699,1587.5,1587.3,3.066]
[1673968225187,0.1748699,1587.5,1587.2,0.066]
[1673968225402,0.1748699,1587.5,1587.1,0.066]
[1673968225759,0.1748699,1587.5,1586.9,0.066]
[1673968225760,0.03230418,1587.4,1586.9,0.066]
[1673968226073,0.03230418,1587.4,1586.5,0.066]
[1673968226074,6.77275,1587.3,1586.5,0.066]
[1673968226399,0.5387,1587.3,1586.5,6.3031]
[1673968226704,0.4727,1587.3,1586.5,6.3691]
[1673968227275,7.57099,1587.1,1586.5,0.066]
[1673968227507,8.04403,1587.0,1586.2,0.066]
[1673968227717,0.804403,1586.9,1586.1,8.1055]
[1673968228014,0.4728,1586.8,1586.1,8.1055]
[1673968228224,0.4728,1586.8,1586.1,0.066]
[1673968228225,26.1372614,1586.8,1586.1,0.066]
[1673968228470,26.1992614,1586.8,1586.1,0.002]
[1673968228751,1.266,1586.6,1585.8,6.3717]
[1673968228959,5.9617514,1586.5,1585.8,0.066]
[1673968229175,15.268,1586.4,1585.8,0.064]
[1673968229391,8.04701,1586.3,1585.5,1.66930604]
[1673968229755,0.03230418,1586.2,1585.5,1.66930604]
[1673968229901,0.4731,1586.1,1585.5,7.97620604]
[1673968230111,0.4731,1586.1,1585.5,9.30420604]
[1673968231211,0.03230418,1586.0,1585.5,8.04231604]
[1673968231425,0.03230418,1586.0,1585.5,14.34946604]
[1673968231642,0.03230418,1586.0,1585.5,8.04231604]
[1673968232645,0.03230418,1586.0,1585.6,0.71365343]
[1673968233066,0.03230418,1586.0,1585.6,0.48365343]
[1673968233318,0.4731,1585.9,1585.6,0.48365343]
[1673968233911,0.6660276,1586.0,1585.6,0.48365343]
[1673968234117,0.03230418,1586.0,1585.6,6.79039343]
[1673968234348,0.03230418,1586.0,1585.6,6.85639343]
[1673968234964,0.473,1586.2,1585.6,16.2797775]
[1673968235171,0.473,1586.3,1585.8,1.259]
[1673968235505,0.473,1586.4,1585.9,6.30546]
[1673968235719,4.57990607,1586.4,1585.9,6.37146]
[1673968236118,3.11662407,1586.3,1585.9,0.066]
[1673968236363,3.11662407,1586.3,1585.8,6.37181]
[1673968237047,3.11662407,1586.3,1585.8,12.67777]
[1673968237481,3.11662407,1586.3,1585.8,13.04727]
[1673968237844,3.11662407,1586.3,1585.8,6.74131]
[1673968238049,11.09865468,1586.3,1585.8,6.74131]
[1673968238199,11.16465468,1586.3,1585.8,6.74131]
[1673968238521,0.03230418,1586.2,1585.8,6.74131]
[1673968238731,0.03230418,1586.2,1585.8,7.37181]
[1673968238958,0.066,1586.3,1585.8,13.67777]
[1673968239186,6.96875,1586.5,1585.8,13.67777]
[1673968239358,3.11662407,1586.4,1585.8,12.67777]
[1673968239568,4.12839189,1586.4,1585.8,12.67777]
[1673968239778,3.11662407,1586.3,1585.8,6.37181]
[1673968240032,3.11662407,1586.3,1585.8,0.066]
[1673968240033,3.14892825,1586.2,1585.8,0.066]
[1673968240222,3.11662407,1586.1,1585.6,6.85608343]
[1673968240432,3.11662407,1586.0,1585.6,6.85608343]
[1673968240744,4.05876548,1586.0,1585.6,6.85608343]
[1673968241145,4.05876548,1586.0,1585.6,0.54965343]